[Event "Late-Titled-Tuesday-Blitz-May-07-2024"]
[Site "Chess.com"]
[Date "2024.05.07"]
[Round "6"]
[White "GMG"]
[Black "h4parah5"]
[Result "0-1"]
[WhiteElo "2816"]
[BlackElo "3018"]
[TimeControl "180+1"]
[EndTime "15:07:07 PDT"]
[Termination "h4parah5 won on time"]

1. d4 {[%clk 0:03:00.9]} 1... Nf6 {[%clk 0:02:59.8]} 2. c4 {[%clk 0:03:00.5]}
2... e6 {[%clk 0:03:00.2]} 3. Nf3 {[%clk 0:03:00.6]} 3... d5 {[%clk 0:03:00.2]}
4. Nc3 {[%clk 0:03:00.4]} 4... dxc4 {[%clk 0:02:59.4]} 5. e3 {[%clk 0:03:00.6]}
5... a6 {[%clk 0:02:59.3]} 6. Bxc4 {[%clk 0:03:01]} 6... b5 {[%clk 0:02:58.9]}
7. Bb3 {[%clk 0:03:01.5]} 7... Bb7 {[%clk 0:02:59.4]} 8. O-O {[%clk 0:03:01.8]}
8... c5 {[%clk 0:02:58]} 9. e4 {[%clk 0:03:01.7]} 9... cxd4 {[%clk 0:02:57.2]}
10. Nxd4 {[%clk 0:02:59.3]} 10... Nc6 {[%clk 0:02:56.1]} 11. Nxc6 {[%clk
0:02:44.8]} 11... Bxc6 {[%clk 0:02:55.6]} 12. Qe2 {[%clk 0:02:45.3]} 12... Be7
{[%clk 0:02:51.5]} 13. Rd1 {[%clk 0:02:37.5]} 13... Qc7 {[%clk 0:02:50.5]} 14.
e5 {[%clk 0:02:35.8]} 14... Nd7 {[%clk 0:02:46.6]} 15. Bf4 {[%clk 0:02:35.9]}
15... O-O {[%clk 0:02:42]} 16. Rac1 {[%clk 0:02:31.3]} 16... Qb7 {[%clk
0:02:39.9]} 17. f3 {[%clk 0:02:18.7]} 17... Rfd8 {[%clk 0:02:33.7]} 18. Bc2
{[%clk 0:02:11.2]} 18... Nc5 {[%clk 0:02:26.2]} 19. b4 {[%clk 0:02:08.5]} 19...
Nd7 {[%clk 0:02:25.9]} 20. Rb1 {[%clk 0:02:02.2]} 20... Nb6 {[%clk 0:02:24.3]}
21. Ne4 {[%clk 0:02:01.6]} 21... Rxd1+ {[%clk 0:02:23.1]} 22. Qxd1 {[%clk
0:01:57.8]} 22... Nd5 {[%clk 0:02:17.6]} 23. Bd2 {[%clk 0:01:55.4]} 23... Rd8
{[%clk 0:02:16.5]} 24. Qe2 {[%clk 0:01:52.9]} 24... Qb6+ {[%clk 0:02:11.2]} 25.
Qf2 {[%clk 0:01:50.5]} 25... Qc7 {[%clk 0:02:02.9]} 26. f4 {[%clk 0:01:49.1]}
26... Nb6 {[%clk 0:01:59.5]} 27. Nc5 {[%clk 0:01:45.4]} 27... Bd5 {[%clk
0:01:54.8]} 28. Be3 {[%clk 0:01:34.1]} 28... Nc4 {[%clk 0:01:44.3]} 29. Bd4
{[%clk 0:01:34]} 29... Na3 {[%clk 0:01:40.9]} 30. Rc1 {[%clk 0:01:34.2]} 30...
Nxc2 {[%clk 0:01:40.1]} 31. Rxc2 {[%clk 0:01:35.1]} 31... Rc8 {[%clk 0:01:17.6]}
32. h3 {[%clk 0:01:29.4]} 32... a5 {[%clk 0:01:15.5]} 33. a3 {[%clk 0:01:28.2]}
33... a4 {[%clk 0:01:14.8]} 34. Kh2 {[%clk 0:01:27.2]} 34... Qd8 {[%clk
0:01:09.1]} 35. Rd2 {[%clk 0:01:21.5]} 35... Qe8 {[%clk 0:01:07.1]} 36. Bc3
{[%clk 0:01:18.5]} 36... Rd8 {[%clk 0:01:06.7]} 37. Qe2 {[%clk 0:01:16]} 37...
g6 {[%clk 0:01:03.7]} 38. Qf2 {[%clk 0:01:12.9]} 38... h5 {[%clk 0:01:02.5]} 39.
Bd4 {[%clk 0:01:10.7]} 39... Ba8 {[%clk 0:01:00.2]} 40. Be3 {[%clk 0:01:10]}
40... Qc6 {[%clk 0:00:58.6]} 41. Rxd8+ {[%clk 0:01:04.3]} 41... Bxd8 {[%clk
0:00:59.5]} 42. Qd2 {[%clk 0:00:57]} 42... Bh4 {[%clk 0:00:58.7]} 43. Kg1 {[%clk
0:00:44]} 43... Be1 {[%clk 0:00:51.6]} 44. Qe2 {[%clk 0:00:34.1]} 44... Qd5
{[%clk 0:00:50.8]} 45. Kf1 {[%clk 0:00:26.5]} 45... Bc3 {[%clk 0:00:48.7]} 46.
Kg1 {[%clk 0:00:25.6]} 46... Bc6 {[%clk 0:00:45.8]} 47. Kh2 {[%clk 0:00:25.6]}
47... Qc4 {[%clk 0:00:40.9]} 48. Qd1 {[%clk 0:00:15.4]} 48... Qd5 {[%clk
0:00:36.6]} 49. Qxd5 {[%clk 0:00:15]} 49... Bxd5 {[%clk 0:00:35.4]} 50. Bc1
{[%clk 0:00:15.4]} 50... h4 {[%clk 0:00:34.8]} 51. g3 {[%clk 0:00:15]} 51... g5
{[%clk 0:00:29.3]} 52. fxg5 {[%clk 0:00:13.5]} 52... Bxe5 {[%clk 0:00:28.7]} 53.
Bf4 {[%clk 0:00:11.9]} 53... Bb2 {[%clk 0:00:28.7]} 54. Nd3 {[%clk 0:00:10.6]}
54... hxg3+ {[%clk 0:00:27.5]} 55. Kxg3 {[%clk 0:00:10.7]} 55... Bxa3 {[%clk
0:00:28.2]} 56. Kf2 {[%clk 0:00:08.3]} 56... Bc4 {[%clk 0:00:28.5]} 57. Ke3
{[%clk 0:00:08.7]} 57... Bxd3 {[%clk 0:00:28.3]} 58. Kxd3 {[%clk 0:00:09.6]}
58... Bxb4 {[%clk 0:00:28.9]} 0-1

[Event "Late-Titled-Tuesday-Blitz-May-07-2024"]
[Site "Chess.com"]
[Date "2024.05.07"]
[Round "6"]
[White "Karacsonyi_Gellert"]
[Black "ATM622"]
[Result "1-0"]
[WhiteElo "2709"]
[BlackElo "2533"]
[TimeControl "180+1"]
[EndTime "15:07:08 PDT"]
[Termination "Karacsonyi_Gellert won by resignation"]

1. e4 {[%clk 0:03:00.9]} 1... c6 {[%clk 0:02:58.7]} 2. d4 {[%clk 0:02:59.8]}
2... g6 {[%clk 0:02:57.2]} 3. Bg5 {[%clk 0:02:58.3]} 3... Bg7 {[%clk 0:02:53.5]}
4. Qd2 {[%clk 0:02:58.2]} 4... d5 {[%clk 0:02:52]} 5. e5 {[%clk 0:02:57.7]} 5...
h6 {[%clk 0:02:51.7]} 6. Be3 {[%clk 0:02:57.2]} 6... Qb6 {[%clk 0:02:50.4]} 7.
c3 {[%clk 0:02:57.3]} 7... Bf5 {[%clk 0:02:46.8]} 8. Nf3 {[%clk 0:02:57.3]} 8...
Nd7 {[%clk 0:02:45.9]} 9. Be2 {[%clk 0:02:56.6]} 9... h5 {[%clk 0:02:26.5]} 10.
O-O {[%clk 0:02:55.8]} 10... Nh6 {[%clk 0:02:26.1]} 11. Nh4 {[%clk 0:02:54.1]}
11... Be6 {[%clk 0:02:25.9]} 12. a4 {[%clk 0:02:53.8]} 12... a5 {[%clk
0:02:24.9]} 13. Na3 {[%clk 0:02:51.9]} 13... Nf5 {[%clk 0:02:21.3]} 14. Nxf5
{[%clk 0:02:51.4]} 14... Bxf5 {[%clk 0:02:18.7]} 15. c4 {[%clk 0:02:51.2]} 15...
O-O {[%clk 0:02:14.7]} 16. h3 {[%clk 0:02:46.3]} 16... Qb4 {[%clk 0:02:06.9]}
17. Qc1 {[%clk 0:02:45.9]} 17... Qb6 {[%clk 0:01:06.8]} 18. c5 {[%clk
0:02:40.6]} 18... Qc7 {[%clk 0:01:04.6]} 19. g4 {[%clk 0:02:40.1]} 19... hxg4
{[%clk 0:01:02.6]} 20. hxg4 {[%clk 0:02:41]} 20... Be6 {[%clk 0:01:03]} 21. f4
{[%clk 0:02:41.6]} 21... f5 {[%clk 0:01:02.1]} 22. g5 {[%clk 0:02:40.9]} 22...
Kf7 {[%clk 0:01:00.1]} 23. Kg2 {[%clk 0:02:40.9]} 23... Rh8 {[%clk 0:00:59.7]}
24. Qd2 {[%clk 0:02:40]} 24... b6 {[%clk 0:00:56.4]} 25. cxb6 {[%clk 0:02:32.2]}
25... Qxb6 {[%clk 0:00:54.8]} 26. Rac1 {[%clk 0:02:30.3]} 26... Rab8 {[%clk
0:00:54.5]} 27. Rc2 {[%clk 0:02:28]} 27... Qb3 {[%clk 0:00:52.7]} 28. Bd1 {[%clk
0:02:11.9]} 28... Rh4 {[%clk 0:00:27.1]} 29. Rh1 {[%clk 0:01:40.1]} 29... Rxh1
{[%clk 0:00:26.7]} 30. Kxh1 {[%clk 0:01:41]} 30... Qb6 {[%clk 0:00:18]} 31. Kg2
{[%clk 0:01:37.2]} 31... Rc8 {[%clk 0:00:11.9]} 32. Qc3 {[%clk 0:01:36.4]} 32...
Bf8 {[%clk 0:00:10.8]} 33. Bd2 {[%clk 0:01:34.3]} 33... c5 {[%clk 0:00:04.7]}
34. Qxa5 {[%clk 0:01:34.2]} 34... Qxa5 {[%clk 0:00:04.2]} 35. Bxa5 {[%clk
0:01:35.1]} 35... c4 {[%clk 0:00:03.3]} 36. Bc3 {[%clk 0:01:27.3]} 36... Ra8
{[%clk 0:00:02.7]} 37. Rc1 {[%clk 0:01:28]} 37... Nb6 {[%clk 0:00:02.6]} 38. a5
{[%clk 0:01:28.7]} 38... Nd7 {[%clk 0:00:02.7]} 39. Ra1 {[%clk 0:01:29.4]} 39...
Nb8 {[%clk 0:00:02.2]} 40. Nb5 {[%clk 0:01:27.7]} 40... Bd7 {[%clk 0:00:01.9]}
41. Nc7 {[%clk 0:01:26.3]} 41... Ra7 {[%clk 0:00:02.2]} 42. e6+ {[%clk
0:01:24.7]} 42... Bxe6 {[%clk 0:00:01.8]} 43. Nxe6 {[%clk 0:01:25.6]} 43... Kxe6
{[%clk 0:00:02.5]} 44. Bf3 {[%clk 0:01:26.5]} 44... Nc6 {[%clk 0:00:02.2]} 45.
Re1+ {[%clk 0:01:27.4]} 45... Kd6 {[%clk 0:00:02.3]} 46. Rh1 {[%clk 0:01:17.8]}
46... Nxa5 {[%clk 0:00:02.3]} 47. Rh8 {[%clk 0:01:18.4]} 47... Bg7 {[%clk
0:00:01.4]} 48. Rg8 {[%clk 0:01:18.9]} 48... Nc6 {[%clk 0:00:01.4]} 49. Rxg7
{[%clk 0:01:19.3]} 49... Ra2 {[%clk 0:00:01.4]} 50. Rxg6+ {[%clk 0:01:19.6]}
50... e6 {[%clk 0:00:01.9]} 51. Rg8 {[%clk 0:01:18.5]} 51... Ke7 {[%clk
0:00:01.1]} 52. g6 {[%clk 0:01:18.5]} 52... Kf6 {[%clk 0:00:01.4]} 53. g7 {[%clk
0:01:17.6]} 53... Kf7 {[%clk 0:00:01.6]} 54. Rc8 {[%clk 0:01:18.3]} 54... Ne7
{[%clk 0:00:01.9]} 55. Rc7 {[%clk 0:01:19]} 55... Kxg7 {[%clk 0:00:01.9]} 56.
Rxe7+ {[%clk 0:01:19.6]} 56... Kf6 {[%clk 0:00:02.8]} 57. Re8 {[%clk 0:01:18.1]}
57... Ra1 {[%clk 0:00:02.9]} 58. Rf8+ {[%clk 0:01:18.4]} 58... Kg7 {[%clk
0:00:03.2]} 59. Re8 {[%clk 0:01:18.2]} 59... Kf7 {[%clk 0:00:03.6]} 60. Bh5+
{[%clk 0:01:18.4]} 60... Kf6 {[%clk 0:00:03.3]} 61. Bb4 {[%clk 0:01:18.4]} 61...
Rb1 {[%clk 0:00:02.5]} 62. Rf8+ {[%clk 0:01:14.9]} 62... Kg7 {[%clk 0:00:02.7]}
63. Rf7+ {[%clk 0:01:06.5]} 63... Kh6 {[%clk 0:00:02.8]} 64. Bf3 {[%clk
0:01:07.3]} 64... Rxb2+ {[%clk 0:00:02.6]} 65. Kg3 {[%clk 0:01:08]} 65... Rxb4
{[%clk 0:00:02.8]} 66. Rf6+ {[%clk 0:01:08.7]} 66... Kg7 {[%clk 0:00:03.2]} 67.
Rxe6 {[%clk 0:01:09.6]} 67... c3 {[%clk 0:00:03.4]} 68. Rc6 {[%clk 0:01:06.2]}
68... Rc4 {[%clk 0:00:03.4]} 69. Rxc4 {[%clk 0:01:06.2]} 69... dxc4 {[%clk
0:00:03.5]} 70. Bd1 {[%clk 0:01:06.7]} 70... Kf6 {[%clk 0:00:03.6]} 71. Bc2
{[%clk 0:01:06]} 71... Ke6 {[%clk 0:00:04]} 72. Kf3 {[%clk 0:01:06.6]} 72... Kd6
{[%clk 0:00:04]} 73. Bxf5 {[%clk 0:01:05.9]} 73... Kd5 {[%clk 0:00:04.4]} 74.
Ke3 {[%clk 0:01:06.6]} 74... c2 {[%clk 0:00:03.4]} 75. Bxc2 {[%clk 0:01:07.1]}
1-0

[Event "Late-Titled-Tuesday-Blitz-May-07-2024"]
[Site "Chess.com"]
[Date "2024.05.07"]
[Round "6"]
[White "koziororo"]
[Black "jaramsdal"]
[Result "1-0"]
[WhiteElo "2585"]
[BlackElo "2388"]
[TimeControl "180+1"]
[EndTime "15:07:09 PDT"]
[Termination "koziororo won on time"]

1. b4 {[%clk 0:03:00.6]} 1... e5 {[%clk 0:02:57.1]} 2. Bb2 {[%clk 0:03:01]} 2...
Bxb4 {[%clk 0:02:54.6]} 3. Bxe5 {[%clk 0:03:00.2]} 3... Nf6 {[%clk 0:02:55]} 4.
Nf3 {[%clk 0:02:59.2]} 4... Nc6 {[%clk 0:02:52.2]} 5. Bb2 {[%clk 0:02:58.9]}
5... O-O {[%clk 0:02:51.6]} 6. e3 {[%clk 0:02:59.1]} 6... d5 {[%clk 0:02:49.7]}
7. Bd3 {[%clk 0:02:58.1]} 7... Bg4 {[%clk 0:02:48.6]} 8. h3 {[%clk 0:02:53.9]}
8... Bh5 {[%clk 0:02:48.9]} 9. g4 {[%clk 0:02:50.9]} 9... Bg6 {[%clk 0:02:49.2]}
10. a3 {[%clk 0:02:07.2]} 10... Bd6 {[%clk 0:02:36.2]} 11. Nc3 {[%clk
0:02:00.4]} 11... Re8 {[%clk 0:02:23.3]} 12. Nb5 {[%clk 0:01:54.4]} 12... Ne4
{[%clk 0:02:18.4]} 13. h4 {[%clk 0:01:49.7]} 13... h5 {[%clk 0:02:11.4]} 14.
Nfd4 {[%clk 0:01:47]} 14... Nxd4 {[%clk 0:02:06.6]} 15. Nxd4 {[%clk 0:01:45.9]}
15... Qf6 {[%clk 0:01:37.8]} 16. Qf3 {[%clk 0:01:25.7]} 16... hxg4 {[%clk
0:01:29.4]} 17. Qxf6 {[%clk 0:01:23.8]} 17... gxf6 {[%clk 0:01:21.8]} 18. h5
{[%clk 0:01:24]} 18... Bh7 {[%clk 0:01:16.8]} 19. Ke2 {[%clk 0:01:24.3]} 19...
g3 {[%clk 0:01:11.9]} 20. f3 {[%clk 0:01:23.3]} 20... Nf2 {[%clk 0:01:08.3]} 21.
Rh4 {[%clk 0:01:14.9]} 21... Nxd3 {[%clk 0:01:03.5]} 22. cxd3 {[%clk 0:01:15.8]}
22... Kh8 {[%clk 0:00:42.5]} 23. f4 {[%clk 0:01:04.5]} 23... Kg7 {[%clk
0:00:15.1]} 24. Rg1 {[%clk 0:01:03.2]} 24... Kh6 {[%clk 0:00:15.3]} 25. Nb5
{[%clk 0:00:55.4]} 25... Rg8 {[%clk 0:00:12.7]} 26. Bxf6 {[%clk 0:00:53.2]}
26... Bf5 {[%clk 0:00:08]} 27. Nxd6 {[%clk 0:00:38.4]} 27... cxd6 {[%clk
0:00:08.9]} 28. Bg5+ {[%clk 0:00:39.3]} 28... Kh7 {[%clk 0:00:09.1]} 29. Rxg3
{[%clk 0:00:38.6]} 29... f6 {[%clk 0:00:09.6]} 30. Rh1 {[%clk 0:00:29.8]} 30...
Rae8 {[%clk 0:00:09.1]} 31. Rc1 {[%clk 0:00:25.4]} 31... fxg5 {[%clk 0:00:08.6]}
32. fxg5 {[%clk 0:00:26.3]} 32... Re7 {[%clk 0:00:06.4]} 33. Rf1 {[%clk
0:00:19.6]} 33... Bd7 {[%clk 0:00:05.5]} 34. Rf6 {[%clk 0:00:19.1]} 34... d4
{[%clk 0:00:06]} 35. Rxd6 {[%clk 0:00:17.8]} 35... dxe3 {[%clk 0:00:05.7]} 36.
dxe3 {[%clk 0:00:18.7]} 36... Rgg7 {[%clk 0:00:05.6]} 37. e4 {[%clk 0:00:18.3]}
37... Bc6 {[%clk 0:00:04.9]} 38. Ke3 {[%clk 0:00:18.7]} 38... Rd7 {[%clk
0:00:04.6]} 39. Rh6+ {[%clk 0:00:18.5]} 39... Kg8 {[%clk 0:00:04.7]} 40. d4
{[%clk 0:00:19.4]} 40... Rdf7 {[%clk 0:00:04]} 41. d5 {[%clk 0:00:18.4]} 41...
Be8 {[%clk 0:00:04.3]} 42. Re6 {[%clk 0:00:18.3]} 42... Re7 {[%clk 0:00:04.8]}
43. Rxe7 {[%clk 0:00:18.8]} 43... Rxe7 {[%clk 0:00:05.7]} 44. Kd4 {[%clk
0:00:19.5]} 44... Bxh5 {[%clk 0:00:05.6]} 45. e5 {[%clk 0:00:19.8]} 45... Be8
{[%clk 0:00:05.6]} 46. e6 {[%clk 0:00:20.2]} 46... Kg7 {[%clk 0:00:04.7]} 47.
Ke5 {[%clk 0:00:20.7]} 47... Rc7 {[%clk 0:00:04.1]} 48. Kd6 {[%clk 0:00:16.6]}
48... Rc1 {[%clk 0:00:03.8]} 49. Ke7 {[%clk 0:00:16.9]} 49... Ba4 {[%clk
0:00:03.4]} 50. d6 {[%clk 0:00:14.6]} 50... Rd1 {[%clk 0:00:02.2]} 51. d7 {[%clk
0:00:14.5]} 51... Re1 {[%clk 0:00:00.1]} 52. d8=Q {[%clk 0:00:13.4]} 1-0

[Event "Late-Titled-Tuesday-Blitz-May-07-2024"]
[Site "Chess.com"]
[Date "2024.05.07"]
[Round "6"]
[White "Romadk"]
[Black "Axf7"]
[Result "0-1"]
[WhiteElo "2491"]
[BlackElo "2059"]
[TimeControl "180+1"]
[EndTime "15:07:10 PDT"]
[Termination "Axf7 won by resignation"]

1. d4 {[%clk 0:03:00.9]} 1... Nf6 {[%clk 0:02:57.4]} 2. Nf3 {[%clk 0:03:00.4]}
2... g6 {[%clk 0:02:56.7]} 3. c4 {[%clk 0:02:59.3]} 3... Bg7 {[%clk 0:02:57]} 4.
Nc3 {[%clk 0:02:59.7]} 4... O-O {[%clk 0:02:57.2]} 5. Bg5 {[%clk 0:03:00.3]}
5... d6 {[%clk 0:02:57.3]} 6. e3 {[%clk 0:03:00.6]} 6... Nbd7 {[%clk 0:02:51.8]}
7. Be2 {[%clk 0:03:00.1]} 7... e5 {[%clk 0:02:50.5]} 8. O-O {[%clk 0:02:54.5]}
8... h6 {[%clk 0:02:46.5]} 9. Bh4 {[%clk 0:02:54.1]} 9... g5 {[%clk 0:02:46.8]}
10. Bg3 {[%clk 0:02:54.3]} 10... e4 {[%clk 0:02:46.2]} 11. Nd2 {[%clk
0:02:52.4]} 11... Re8 {[%clk 0:02:45.6]} 12. Qc2 {[%clk 0:02:51.8]} 12... Qe7
{[%clk 0:02:44.7]} 13. Rfe1 {[%clk 0:02:49.1]} 13... Nf8 {[%clk 0:02:44.3]} 14.
Rac1 {[%clk 0:02:42.1]} 14... c6 {[%clk 0:02:42]} 15. f3 {[%clk 0:02:38.2]}
15... exf3 {[%clk 0:02:41.1]} 16. Bxf3 {[%clk 0:02:39.1]} 16... Bg4 {[%clk
0:02:34.5]} 17. b4 {[%clk 0:02:31]} 17... Bxf3 {[%clk 0:02:34.1]} 18. gxf3
{[%clk 0:02:28.6]} 18... Nh5 {[%clk 0:02:14.6]} 19. Bf2 {[%clk 0:02:27.6]} 19...
Rad8 {[%clk 0:02:04.3]} 20. c5 {[%clk 0:02:26.1]} 20... d5 {[%clk 0:02:03.6]}
21. b5 {[%clk 0:02:25.3]} 21... Qe6 {[%clk 0:01:57.9]} 22. Nf1 {[%clk
0:02:10.7]} 22... Qh3 {[%clk 0:01:56.9]} 23. Qd1 {[%clk 0:02:00.8]} 23... Ng6
{[%clk 0:01:48.6]} 24. Bg3 {[%clk 0:01:56.2]} 24... Nh4 {[%clk 0:01:41.2]} 25.
Rc2 {[%clk 0:01:46.5]} 25... f5 {[%clk 0:01:36.8]} 26. Bxh4 {[%clk 0:01:38.6]}
26... Qxh4 {[%clk 0:01:35.5]} 27. Rg2 {[%clk 0:01:31]} 27... Kh8 {[%clk
0:01:32.5]} 28. Ree2 {[%clk 0:01:28.5]} 28... Re7 {[%clk 0:01:31.5]} 29. Ng3
{[%clk 0:01:24.6]} 29... Nxg3 {[%clk 0:01:28.5]} 30. hxg3 {[%clk 0:01:25.1]}
30... Qh5 {[%clk 0:01:28.5]} 31. Ref2 {[%clk 0:01:16.7]} 31... Rxe3 {[%clk
0:01:23]} 32. bxc6 {[%clk 0:01:04]} 32... bxc6 {[%clk 0:01:21.3]} 33. Qd2 {[%clk
0:01:00.4]} 33... Rde8 {[%clk 0:01:11.7]} 34. Ne2 {[%clk 0:00:59.7]} 34... Rxf3
{[%clk 0:01:02.7]} 35. Nc1 {[%clk 0:00:31.7]} 35... Rxf2 {[%clk 0:00:54.1]} 36.
Kxf2 {[%clk 0:00:32.6]} 36... Qg4 {[%clk 0:00:51.8]} 37. Ne2 {[%clk 0:00:30.7]}
37... Qe4 {[%clk 0:00:50.5]} 38. Rh2 {[%clk 0:00:27.5]} 38... Kg8 {[%clk
0:00:47.5]} 39. Rg2 {[%clk 0:00:24.5]} 39... Kf7 {[%clk 0:00:26.8]} 40. Rh2
{[%clk 0:00:24.2]} 40... Kg6 {[%clk 0:00:25.7]} 41. Rg2 {[%clk 0:00:23.9]} 41...
h5 {[%clk 0:00:22.8]} 42. Rh2 {[%clk 0:00:24.1]} 42... Re7 {[%clk 0:00:18.7]}
43. Rg2 {[%clk 0:00:23.4]} 43... h4 {[%clk 0:00:18.6]} 44. gxh4 {[%clk
0:00:23.6]} 44... Qxh4+ {[%clk 0:00:18.8]} 45. Kg1 {[%clk 0:00:22.6]} 45... g4
{[%clk 0:00:15.3]} 46. Nf4+ {[%clk 0:00:22.7]} 46... Kf7 {[%clk 0:00:13.5]} 47.
Nd3 {[%clk 0:00:21.5]} 47... Re4 {[%clk 0:00:02.1]} 48. Ne5+ {[%clk 0:00:20.8]}
48... Bxe5 {[%clk 0:00:02.1]} 49. dxe5 {[%clk 0:00:21.7]} 49... Qe1+ {[%clk
0:00:01.5]} 50. Kh2 {[%clk 0:00:20.5]} 50... Qxd2 {[%clk 0:00:01.3]} 51. Rxd2
{[%clk 0:00:21.4]} 51... Rxe5 {[%clk 0:00:02]} 52. Rf2 {[%clk 0:00:20.4]} 52...
Ke6 {[%clk 0:00:02.6]} 53. Kg3 {[%clk 0:00:20.6]} 53... Re3+ {[%clk 0:00:02.6]}
54. Kh4 {[%clk 0:00:20]} 54... Rf3 {[%clk 0:00:03]} 55. Kg5 {[%clk 0:00:20.8]}
55... Rxf2 {[%clk 0:00:03]} 56. Kg6 {[%clk 0:00:21]} 56... Rxa2 {[%clk
0:00:03.7]} 57. Kg5 {[%clk 0:00:21.9]} 57... Rc2 {[%clk 0:00:04.3]} 58. Kg6
{[%clk 0:00:22.8]} 58... Rxc5 {[%clk 0:00:04.9]} 59. Kg5 {[%clk 0:00:23.7]}
59... Rc2 {[%clk 0:00:05.5]} 60. Kg6 {[%clk 0:00:24.6]} 60... g3 {[%clk
0:00:06]} 61. Kg5 {[%clk 0:00:25.5]} 61... g2 {[%clk 0:00:06.6]} 62. Kg6 {[%clk
0:00:26.4]} 62... g1=Q+ {[%clk 0:00:07.1]} 0-1

[Event "Late-Titled-Tuesday-Blitz-May-07-2024"]
[Site "Chess.com"]
[Date "2024.05.07"]
[Round "6"]
[White "FelixBlohberger"]
[Black "rdarruda"]
[Result "1-0"]
[WhiteElo "2747"]
[BlackElo "2569"]
[TimeControl "180+1"]
[EndTime "15:07:18 PDT"]
[Termination "FelixBlohberger won on time"]

1. Nf3 {[%clk 0:03:00.9]} 1... d5 {[%clk 0:02:52.5]} 2. g3 {[%clk 0:02:59.8]}
2... Nf6 {[%clk 0:02:51.6]} 3. Bg2 {[%clk 0:03:00.1]} 3... c6 {[%clk 0:02:51.8]}
4. O-O {[%clk 0:03:00.5]} 4... g6 {[%clk 0:02:52]} 5. b3 {[%clk 0:03:00.1]} 5...
Bg7 {[%clk 0:02:52]} 6. Bb2 {[%clk 0:03:00.8]} 6... O-O {[%clk 0:02:52]} 7. c4
{[%clk 0:03:01.4]} 7... Nbd7 {[%clk 0:02:51.3]} 8. d4 {[%clk 0:02:58.7]} 8...
Ne4 {[%clk 0:02:50.3]} 9. Nbd2 {[%clk 0:02:52.9]} 9... Ndf6 {[%clk 0:02:47.7]}
10. e3 {[%clk 0:02:46.5]} 10... Bg4 {[%clk 0:02:43]} 11. h3 {[%clk 0:02:43.3]}
11... Nxd2 {[%clk 0:02:42.7]} 12. Qxd2 {[%clk 0:02:43.3]} 12... Ne4 {[%clk
0:02:42.6]} 13. Qe2 {[%clk 0:02:41.4]} 13... Be6 {[%clk 0:02:38.2]} 14. Rfd1
{[%clk 0:02:33.8]} 14... Qa5 {[%clk 0:02:34.7]} 15. Ne5 {[%clk 0:02:12]} 15...
Rfd8 {[%clk 0:02:29.3]} 16. cxd5 {[%clk 0:02:02.1]} 16... cxd5 {[%clk 0:02:29]}
17. Nd3 {[%clk 0:01:58.3]} 17... b6 {[%clk 0:02:22.5]} 18. a3 {[%clk 0:01:41.3]}
18... Nc3 {[%clk 0:02:21.1]} 19. Bxc3 {[%clk 0:01:34.7]} 19... Qxc3 {[%clk
0:02:22]} 20. Qa2 {[%clk 0:01:25.1]} 20... g5 {[%clk 0:02:01.1]} 21. Rac1 {[%clk
0:01:21.2]} 21... Qa5 {[%clk 0:02:00.9]} 22. Nb4 {[%clk 0:01:21.1]} 22... Re8
{[%clk 0:01:49.6]} 23. Bf1 {[%clk 0:01:09.8]} 23... b5 {[%clk 0:01:48]} 24. Rc5
{[%clk 0:01:09.3]} 24... a6 {[%clk 0:01:46.9]} 25. Nxd5 {[%clk 0:01:01.2]} 25...
Bxd5 {[%clk 0:01:33.3]} 26. Rxd5 {[%clk 0:01:02.1]} 26... h6 {[%clk 0:01:33.5]}
27. b4 {[%clk 0:00:55.4]} 27... Qb6 {[%clk 0:01:32.7]} 28. Rc1 {[%clk
0:00:54.9]} 28... e5 {[%clk 0:01:23.1]} 29. Rd7 {[%clk 0:00:50.3]} 29... Qe6
{[%clk 0:01:07.1]} 30. Qxe6 {[%clk 0:00:49.9]} 30... Rxe6 {[%clk 0:01:07.1]} 31.
d5 {[%clk 0:00:23.1]} 31... Rf6 {[%clk 0:01:00.6]} 32. Rcc7 {[%clk 0:00:16.1]}
32... Bf8 {[%clk 0:00:55.4]} 33. Bd3 {[%clk 0:00:12]} 33... a5 {[%clk
0:00:52.5]} 34. Ra7 {[%clk 0:00:11.6]} 34... Rxa7 {[%clk 0:00:50.8]} 35. Rxa7
{[%clk 0:00:12.5]} 35... axb4 {[%clk 0:00:51]} 36. axb4 {[%clk 0:00:13]} 36...
Bxb4 {[%clk 0:00:51.1]} 37. Bxb5 {[%clk 0:00:12.6]} 37... Kf8 {[%clk 0:00:39.6]}
38. Kg2 {[%clk 0:00:11.9]} 38... Rb6 {[%clk 0:00:37.5]} 39. Be2 {[%clk
0:00:04.3]} 39... Bc5 {[%clk 0:00:31.1]} 40. Bh5 {[%clk 0:00:02.4]} 40... Be7
{[%clk 0:00:21.6]} 41. Ra8+ {[%clk 0:00:02.4]} 41... Kg7 {[%clk 0:00:21.3]} 42.
Ra7 {[%clk 0:00:02.5]} 42... Kf8 {[%clk 0:00:20.6]} 43. Ra2 {[%clk 0:00:02.9]}
43... Rb5 {[%clk 0:00:19.5]} 44. e4 {[%clk 0:00:02]} 44... Bc5 {[%clk
0:00:16.9]} 45. Bg4 {[%clk 0:00:01.9]} 45... Kg7 {[%clk 0:00:16.9]} 46. Bh5
{[%clk 0:00:02]} 46... Rb7 {[%clk 0:00:16.4]} 47. Kf3 {[%clk 0:00:02.3]} 47...
Rb3+ {[%clk 0:00:15.9]} 48. Kg4 {[%clk 0:00:02.6]} 48... Rb7 {[%clk 0:00:16.8]}
49. f3 {[%clk 0:00:02.9]} 49... Rc7 {[%clk 0:00:16.3]} 50. h4 {[%clk 0:00:03.3]}
50... gxh4 {[%clk 0:00:15.1]} 51. Kxh4 {[%clk 0:00:04.2]} 51... Be7+ {[%clk
0:00:13.3]} 52. Kg4 {[%clk 0:00:04.8]} 52... Rd7 {[%clk 0:00:11.7]} 53. Ra6
{[%clk 0:00:05.2]} 53... Rd6 {[%clk 0:00:11.8]} 54. Ra7 {[%clk 0:00:05.5]} 54...
Kf6 {[%clk 0:00:11.4]} 55. f4 {[%clk 0:00:06.1]} 55... exf4 {[%clk 0:00:08.4]}
56. gxf4 {[%clk 0:00:07]} 1-0